fUSD/lending_fUSD_20250226
["ID","MTS","AMOUNT","RATE_DAILY","PERIOD"]
[354515324,1740545461757,-3257.86,0.00046234,120]
[354515325,1740545461767,-1769.404584,0.00046234,120]
[354515326,1740545461776,-941.96,0.00046234,120]
[354515327,1740545461785,-500.0,0.00046234,120]
[354515328,1740545461794,-1035.3,0.00046234,120]
[354515329,1740545461804,-1260.35,0.00046234,120]
[354515330,1740545461813,-546.26,0.00046234,120]
[354515331,1740545461823,-581.93,0.00046234,120]
[354515332,1740545461832,-663.97,0.00046234,120]
[354515333,1740545461841,-840.65,0.00046234,120]
[354515334,1740545461851,-1677.04,0.00046234,120]
[354515335,1740545461860,-1758.42,0.00046234,120]
[354515336,1740545461869,-1761.08,0.00046234,120]
[354515337,1740545461879,-3731.68,0.00046234,120]
[354515338,1740545461888,-1278.59,0.00046234,120]
[354515339,1740545461901,-1836.56,0.00046234,120]
[354515340,1740545461916,-2130.86,0.00046234,120]
[354515341,1740545461925,-598.26,0.00046234,120]
[354515342,1740545461935,-3078.46,0.00046234,120]
[354515343,1740545461944,-2144.75,0.00046234,120]
[354515344,1740545461953,-1512.01,0.00046234,120]
[354515345,1740545461963,-1482.84,0.00046234,120]
[354515346,1740545461972,-2000.0,0.00046234,120]
[354515347,1740545461981,-2052.78,0.00046234,120]
[354515348,1740545461991,-1181.77,0.00046234,120]
[354515349,1740545462000,-1717.29,0.00046234,60]
[354515350,1740545462009,-2385.7,0.00046234,120]
[354515351,1740545462019,-3345.39,0.00046234,120]
[354515352,1740545462030,-500.0,0.00046234,120]
[354515353,1740545462039,-7791.78,0.00046234,120]
[354515354,1740545462050,-5082.69,0.00046234,120]
[354515355,1740545462060,-3575.37,0.00046234,120]
[354515356,1740545462069,-1379.73,0.00046234,120]
[354515357,1740545462078,-4638.55,0.00046234,120]
[354515358,1740545462087,-2301.34,0.00046234,120]
[354515359,1740545462097,-3709.99,0.00046234,120]
[354515360,1740545462106,-2789.06,0.00046234,120]
[354515361,1740545462115,-3227.42,0.00046234,120]
[354515362,1740545462125,-1147.6,0.00046234,120]
[354515363,1740545462134,-6469.53,0.00046234,120]
[354515364,1740545462143,-2167.87,0.00046234,120]
[354515365,1740545462152,-4540.32,0.00046234,120]
[354515366,1740545462162,-11696.83,0.00046234,120]
[354515367,1740545462171,-2139.7,0.00046234,120]
[354515368,1740545462180,-2726.59,0.00046234,120]
[354515369,1740545462190,-3403.22,0.00046234,120]
[354515370,1740545462200,-4729.59,0.00046234,120]
[354515371,1740545462210,-5478.32,0.00046234,120]
[354515372,1740545462221,-1047.25,0.00046234,2]
[354515373,1740545462231,-2101.74,0.00046234,120]
[354515374,1740545462240,-500.0,0.00046234,120]
[354515375,1740545462249,-4223.16,0.00046234,120]
[354515376,1740545462259,-1473.27,0.00046234,120]
[354515377,1740545462270,-5925.64,0.00046234,120]
[354515378,1740545462279,-500.0,0.00046234,120]
[354515379,1740545462289,-1693.11,0.00046234,120]
[354515380,1740545462298,-1682.93,0.00046234,120]
[354515381,1740545462307,-3950.76,0.00046234,120]
[354515382,1740545462317,-6304.46,0.00046234,120]
[354515383,1740545462326,-7256.93,0.00046234,120]
[354515384,1740545462335,-500.0,0.00046234,120]
[354515385,1740545462345,-1319.93,0.00046234,120]
[354515386,1740545462357,-4857.22,0.00046234,120]
[354515387,1740545462366,-13237.9,0.00046234,120]
[354515388,1740545462375,-16021.01,0.00046234,120]
[354515389,1740545462384,-5756.45,0.00046234,120]
[354515390,1740545462393,-500.0,0.00046234,120]
[354515391,1740545462403,-1865.73,0.00046234,120]
[354515392,1740545462413,-3583.7,0.00046234,120]
[354515393,1740545462422,-4153.87,0.00046234,120]
[354515394,1740545462431,-8351.68,0.00046234,120]
[354515395,1740545462441,-1059.87,0.00046234,120]
[354515396,1740545462450,-3897.29,0.00046234,120]
[354515397,1740545462459,-3052.88,0.00046234,120]
[354515398,1740545462468,-4793.74,0.00046234,120]
[354515399,1740545462478,-6352.52,0.00046234,120]
[354515400,1740545462487,-2039.49,0.00046234,120]
[354515401,1740545462496,-6106.35,0.00046234,120]
[354515402,1740545462505,-1401.61,0.00046234,120]
[354515403,1740545462514,-1353.62,0.00046234,120]
[354515404,1740545462523,-3246.55,0.00046234,120]
[354515405,1740545462533,-776.6,0.00046234,120]
[354515406,1740545462542,-6281.65,0.00046234,120]
[354515407,1740545462551,-6383.06,0.00046234,120]
[354515408,1740545462560,-5353.64,0.00046234,120]
[354515409,1740545462569,-3262.98,0.00046234,120]
[354515410,1740545462579,-4677.05,0.00046234,120]
[354515411,1740545462588,-1402.85,0.00046234,120]
[354515412,1740545462597,-7251.9,0.00046234,120]
[354515413,1740545462607,-5612.15,0.00046234,120]
[354515414,1740545462615,-4366.36,0.00046234,120]
[354515415,1740545462624,-3202.0,0.00046234,120]
[354515416,1740545462631,-12144.92,0.00046234,100]
[354515417,1740545462639,-3076.26,0.00046234,120]
[354515418,1740545462647,-5588.16,0.00046234,120]
[354515419,1740545462655,-4257.59,0.00046234,120]
[354515420,1740545462663,-794.97,0.00046234,120]
[354515421,1740545462670,-1408.53,0.00046234,120]
[354515422,1740545462679,-947.63,0.00046234,120]
[354515423,1740545462697,-271.38,0.00046234,120]
[354515424,1740545462708,-1012.99,0.00046234,120]
[354515425,1740545462716,-1985.29,0.00046234,120]
[354515426,1740545462725,-6511.59,0.00046234,120]
[354515427,1740545462732,-831.7,0.00046234,120]
[354515428,1740545462740,-2592.27,0.00046234,120]
[354515429,1740545462748,-1903.39,0.00046234,120]
[354515430,1740545462756,-2346.42,0.00046234,120]
[354515431,1740545462764,-500.0,0.00046234,120]
[354515432,1740545462772,-6950.95,0.00046234,120]
[354515433,1740545462781,-6396.6,0.00046234,120]
[354515434,1740545462788,-2786.95,0.00046234,120]
[354515435,1740545462797,-2355.88,0.00046234,120]
[354515436,1740545462806,-7130.06,0.00046234,120]
[354515437,1740545462823,-4048.09,0.00046234,120]
[354515438,1740545462832,-500.0,0.00046234,120]
[354515439,1740545462841,-500.0,0.00046234,120]
[354515440,1740545462850,-990.74,0.00046234,120]
[354515441,1740545462859,-2776.37,0.00046234,30]
[354515442,1740545462869,-696.24,0.00046234,120]
[354515443,1740545462879,-2454.63,0.00046234,120]
[354515444,1740545462888,-4711.74,0.00046234,120]
[354515445,1740545462901,-500.0,0.00046234,120]
[354515446,1740545462910,-500.0,0.00046234,120]
[354515447,1740545462922,-612.89,0.00046234,120]
[354515448,1740545462939,-500.0,0.00046234,120]
[354515449,1740545462954,-500.0,0.00046234,120]
[354515450,1740545462965,-2298.12,0.00046234,120]
[354515451,1740545462979,-2642.56,0.00046234,120]
[354515452,1740545462994,-3387.36,0.00046234,120]
[354515453,1740545463008,-3556.25,0.00046234,120]
[354515454,1740545463022,-8166.19,0.00046234,120]
[354515455,1740545463035,-533.63300267,0.00046234,120]
[354515456,1740545463048,-1094.95,0.00046234,120]
[354515457,1740545463061,-3964.2,0.00046234,120]
[354515458,1740545463076,-4159.81,0.00046234,120]
[354515459,1740545463091,-9845.82,0.00046234,120]
[354515460,1740545463105,-4619.88,0.00046234,120]
[354515461,1740545463120,-500.0,0.00046234,120]
[354515462,1740545463134,-826.31,0.00046234,120]
[354515463,1740545463149,-1440.55,0.00046234,7]
[354515464,1740545463164,-2426.88,0.00046234,120]
[354515465,1740545463178,-500.0,0.00046234,120]
[354515466,1740545463190,-500.0,0.00046235,120]
[354515467,1740545463205,-748.15,0.00046235,120]
[354515468,1740545463219,-1188.93,0.00046235,120]
[354515469,1740545463232,-1127.18,0.00046235,120]
[354515470,1740545463244,-500.0,0.00046235,120]
[354515471,1740545463257,-500.0,0.00046235,120]
[354515472,1740545463271,-842.82,0.00046235,120]
[354515473,1740545463287,-998.2,0.00046235,120]
[354515474,1740545463299,-500.0,0.00046235,120]
[354515475,1740545463310,-500.0,0.00046235,120]
[354515476,1740545463324,-944.51,0.00046235,120]
[354515477,1740545463339,-500.0,0.00046235,120]
[354515478,1740545463352,-1005.61,0.00046235,120]
[354515479,1740545463364,-500.0,0.00046235,120]
[354515480,1740545463377,-576.92,0.00046235,120]
[354515481,1740545463389,-1765.22,0.00046235,120]
[354515482,1740545463402,-732.19,0.00046235,40]
[354515483,1740545463414,-554.57,0.00046235,120]
[354515484,1740545463427,-500.0,0.00046235,120]
[354515485,1740545463440,-500.0,0.00046235,120]
[354515486,1740545463453,-247.10386992,0.00046235,120]
[354515487,1740545463466,-510.74,0.00046235,120]
[354515488,1740545463479,-588.82,0.00046235,120]
[354515489,1740545463491,-566.6644319,0.00046235,120]
[354515490,1740545463504,-500.0,0.00046235,120]
[354515491,1740545463515,-500.0,0.00046235,120]
[354515492,1740545463528,-1088.82,0.00046235,120]
[354515493,1740545463540,-500.0,0.00046235,120]
[354515494,1740545463553,-785.32,0.00046235,120]
[354515495,1740545463565,-1056.21,0.00046235,120]
[354515496,1740545463576,-919.11,0.00046235,120]
[354515497,1740545463588,-775.2,0.00046235,120]
[354515498,1740545463600,-1082.79,0.00046235,120]
[354515499,1740545463612,-1295.05,0.00046235,120]
[354515500,1740545463624,-500.0,0.00046235,120]
[354515501,1740545463637,-158.35218855,0.00046235,120]
[354515502,1740545463650,-1232.32,0.00046235,120]
[354515503,1740545463663,-743.71,0.00046235,120]
[354515504,1740545463675,-1447.18,0.00046235,120]
[354515505,1740545463688,-500.0,0.00046235,120]
[354515506,1740545463700,-1157.59,0.00046235,120]
[354515507,1740545463713,-526.25,0.00046235,120]
[354515508,1740545463725,-950.62,0.00046235,120]
[354515509,1740545463739,-500.0,0.00046235,120]
[354515510,1740545463751,-500.0,0.00046235,120]
[354515511,1740545463764,-500.0,0.00046235,120]
[354515512,1740545463776,-616.88,0.00046235,120]
[354515513,1740545463789,-518.16,0.00046235,120]
[354515514,1740545463800,-1858.61,0.00046235,120]
[354515515,1740545463816,-500.0,0.00046235,120]
[354515516,1740545463834,-500.0,0.00046235,120]
[354515517,1740545463845,-553.42013192,0.00046235,120]
[354515518,1740545463859,-1050.33,0.00046235,120]
[354515519,1740545463872,-906.95,0.00046235,120]
[354515520,1740545463884,-500.0,0.00046235,120]
[354515521,1740545463898,-684.12,0.00046235,120]
[354515522,1740545463912,-500.0,0.00046235,120]
[354515523,1740545463924,-855.57,0.00046235,120]
[354515524,1740545463943,-1269.04,0.00046235,120]
[354515525,1740545463956,-500.0,0.00046235,120]
[354515526,1740545463968,-500.0,0.00046235,120]
[354515527,1740545463981,-1244.97,0.00046235,120]
[354515528,1740545463993,-1766.01,0.00046235,120]
[354515529,1740545464006,-500.0,0.00046235,120]
[354515530,1740545464018,-566.48,0.00046235,120]
[354515531,1740545464030,-500.0,0.00046235,120]
[354515532,1740545464043,-500.0,0.00046235,120]
[354515533,1740545464055,-500.0,0.00046235,30]
[354515534,1740545464069,-614.5,0.00046235,120]
[354515535,1740545464082,-636.63,0.00046235,120]
[354515536,1740545464094,-1537.76,0.00046235,120]
[354515537,1740545464110,-556.09,0.00046235,120]
[354515538,1740545464124,-1561.04,0.00046235,120]
[354515539,1740545464136,-635.65,0.00046235,120]
[354515540,1740545464148,-500.0,0.00046235,120]
[354515541,1740545464161,-1886.85,0.00046235,120]
[354515542,1740545464173,-720.46,0.00046235,120]
[354515543,1740545464185,-500.04,0.00046235,120]
[354515544,1740545464197,-1597.65,0.00046235,120]
[354515545,1740545464209,-561.48,0.00046235,120]
[354515546,1740545464222,-2032.11,0.00046235,120]
[354515547,1740545464234,-522.00013403,0.00046235,120]
[354515548,1740545464245,-500.0,0.00046235,120]
[354515549,1740545464259,-2501.68,0.00046235,120]
[354515550,1740545464270,-1468.08,0.00046235,120]
[354515551,1740545464283,-500.0,0.00046235,120]
[354515552,1740545464295,-442.49632988,0.00046235,120]
[354515553,1740545464307,-1156.14,0.00046235,120]
[354515554,1740545464319,-500.0,0.00046235,120]
[354515555,1740545464331,-500.0,0.00046235,120]
[354515556,1740545464343,-500.0,0.00046235,120]
[354515557,1740545464355,-500.0,0.00046235,120]
[354515558,1740545464367,-1185.28,0.00046235,120]
[354515559,1740545464378,-998.56,0.00046235,120]
[354515560,1740545464390,-1781.57,0.00046235,120]
[354515561,1740545464403,-500.0,0.00046235,120]
[354515562,1740545464415,-500.0,0.00046235,120]
[354515563,1740545464427,-2103.13,0.00046235,120]
[354515564,1740545464439,-2005.72,0.00046235,120]
[354515565,1740545464451,-1520.23,0.00046235,120]
[354515566,1740545464464,-804.58,0.00046235,120]
[354515567,1740545464476,-1705.14,0.00046235,120]
[354515568,1740545464488,-747.32,0.00046235,120]
[354515569,1740545464500,-591.61331214,0.00046235,120]
[354515570,1740545464511,-500.0,0.00046235,120]
[354515571,1740545464523,-1930.63,0.00046235,120]
[354515572,1740545464535,-3056.87,0.00046235,120]
[354515573,1740545464547,-2023.7,0.00046235,120]
[354515574,1740545464559,-1399.86,0.00046235,120]
[354515575,1740545464570,-812.2,0.00046235,120]
[354515576,1740545464582,-1818.25,0.00046235,120]
[354515577,1740545464593,-500.0,0.00046235,120]
[354515578,1740545464607,-500.0,0.00046235,120]
[354515579,1740545464618,-505.84609822,0.00046235,120]
[354515580,1740545464630,-2007.89,0.00046235,120]
[354515581,1740545464643,-500.0,0.00046235,120]
[354515582,1740545464655,-3494.8,0.00046235,120]
[354515583,1740545464667,-500.0,0.00046235,120]
[354515584,1740545464678,-500.0,0.00046235,120]
[354515585,1740545464690,-500.0,0.00046235,120]
[354515586,1740545464701,-662.9,0.00046235,120]
[354515587,1740545464713,-2865.32,0.00046235,120]
[354515588,1740545464725,-735.22,0.00046235,120]
[354515589,1740545464736,-756.25,0.00046235,120]
[354515590,1740545464748,-965.85,0.00046235,120]
[354515591,1740545464760,-944.55,0.00046235,120]
[354515592,1740545464772,-500.0,0.00046235,120]
[354515593,1740545464784,-3710.78,0.00046235,120]
[354515594,1740545464796,-500.0,0.00046235,7]
[354515595,1740545464808,-500.0,0.00046235,120]
[354515596,1740545464819,-500.0,0.00046235,120]
[354515597,1740545464831,-500.0,0.00046235,120]
[354515598,1740545464843,-500.0,0.00046235,120]
[354515599,1740545464857,-809.07,0.00046235,120]
[354515600,1740545464869,-2004.92,0.00046235,120]
[354515601,1740545464880,-1602.06,0.00046235,120]
[354515602,1740545464892,-1644.31,0.00046235,120]
[354515603,1740545464908,-1112.18,0.00046235,120]
[354515604,1740545464920,-2459.71,0.00046235,120]
[354515605,1740545464932,-500.0,0.00046235,120]
[354515606,1740545464944,-1105.27,0.00046235,120]
[354515607,1740545464957,-1096.73,0.00046235,120]
[354515608,1740545464968,-2864.87,0.00046235,120]
[354515609,1740545464980,-700.64,0.00046235,60]
[354515610,1740545464992,-1190.31,0.00046235,120]
[354515611,1740545465004,-500.0,0.00046235,120]
[354515612,1740545465015,-533.48,0.00046235,120]
[354515613,1740545465027,-1295.7,0.00046235,120]
[354515614,1740545465038,-500.0,0.00046235,120]
[354515615,1740545465049,-2861.7,0.00046235,120]
[354515616,1740545465061,-943.82,0.00046235,120]
[354515617,1740545465073,-972.27,0.00046235,120]
[354515618,1740545465085,-1128.35,0.00046235,120]
[354515619,1740545465096,-500.0,0.00046235,120]
[354515620,1740545465109,-2384.67,0.00046235,120]
[354515621,1740545465121,-978.13,0.00046235,120]
[354515622,1740545465132,-500.0,0.00046235,120]
[354515623,1740545465144,-657.55,0.00046235,120]
[354515624,1740545465156,-500.0,0.00046235,120]
[354515625,1740545465168,-1783.05,0.00046235,120]
[354515626,1740545465179,-1706.69,0.00046235,120]
[354515627,1740545465191,-1972.72,0.00046235,120]
[354515628,1740545465203,-787.87,0.00046235,120]
[354515629,1740545465215,-1647.98,0.00046235,120]
[354515630,1740545465227,-3098.47,0.00046235,120]
[354515631,1740545465239,-593.3,0.00046235,120]
[354515632,1740545465250,-1556.84,0.00046235,120]
[354515633,1740545465262,-2066.51,0.00046235,120]
[354515634,1740545465274,-500.0,0.00046235,120]
[354515635,1740545465285,-500.0,0.00046235,120]
[354515636,1740545465296,-2408.72,0.00046235,120]
[354515637,1740545465308,-1412.0,0.00046235,120]
[354515638,1740545465320,-1794.9,0.00046235,120]
[354515639,1740545465332,-1787.84,0.00046235,120]
[354515640,1740545465343,-500.0,0.00046235,120]
[354515641,1740545465355,-500.0,0.00046235,120]
[354515642,1740545465367,-904.93,0.00046235,120]
[354515643,1740545465379,-500.0,0.00046235,120]
[354515644,1740545465391,-1301.4,0.00046235,120]
[354515645,1740545465402,-706.85,0.00046235,120]
[354515646,1740545465413,-3485.96,0.00046235,120]
[354515647,1740545465423,-500.0,0.00046235,120]
[354515648,1740545465432,-537.36729005,0.00046235,120]
[354515649,1740545465441,-500.0,0.00046235,120]
[354515650,1740545465451,-2339.19,0.00046235,120]
[354515651,1740545465461,-1937.92,0.00046235,120]
[354515652,1740545465470,-1806.73,0.00046235,120]
[354515653,1740545465479,-828.54,0.00046235,120]
[354515654,1740545465488,-500.0,0.00046235,120]
[354515655,1740545465497,-1400.12,0.00046235,120]
[354515656,1740545465507,-2594.92,0.00046235,120]
[354515657,1740545465516,-500.0,0.00046235,120]
[354515658,1740545465526,-703.54,0.00046235,120]
[354515659,1740545465535,-1265.9,0.00046235,120]
[354515660,1740545465544,-1804.4,0.00046235,120]
[354515661,1740545465553,-1287.41,0.00046235,120]
[354515662,1740545465562,-2329.71,0.00046235,120]
[354515663,1740545465572,-749.86,0.00046235,120]
[354515664,1740545465579,-700.47,0.00046235,120]
[354515665,1740545465587,-2302.07,0.00046235,120]
[354515666,1740545465594,-500.0,0.00046235,120]
[354515667,1740545465603,-500.0,0.00046235,120]
[354515668,1740545465611,-1084.41,0.00046235,120]
[354515669,1740545465619,-500.0,0.00046235,120]
[354515670,1740545465627,-190.44573391,0.00046235,120]
[354515671,1740545465636,-2277.44,0.00046235,120]
[354515672,1740545465645,-500.0,0.00046235,120]
[354515673,1740545465655,-1443.45,0.00046235,120]
[354515674,1740545465664,-500.0,0.00046235,120]
[354515675,1740545465674,-500.0,0.00046235,120]
[354515676,1740545465683,-507.94,0.00046235,120]
[354515677,1740545466144,-500.0,0.00046235,120]
[354515678,1740545466168,-500.0,0.00046235,120]
[354515679,1740545466193,-1333.98,0.00046235,120]
[354515680,1740545466219,-1476.8,0.00046235,120]
[354515681,1740545466232,-500.0,0.00046235,120]
[354515682,1740545466242,-607.8,0.00046235,120]
[354515683,1740545466253,-663.81,0.00046235,120]
[354515684,1740545466262,-937.52,0.00046235,120]
[354515685,1740545466271,-1782.19,0.00046235,120]
[354515686,1740545466280,-541.35,0.00046235,120]
[354515687,1740545466290,-2069.36,0.00046235,120]
[354515688,1740545466299,-1014.83,0.00046235,120]
[354515689,1740545466308,-1608.91,0.00046235,120]
[354515690,1740545466317,-584.69,0.00046235,120]
[354515691,1740545466326,-1794.65,0.00046235,120]
[354515692,1740545466335,-701.73,0.00046235,120]
[354515693,1740545466344,-1004.93,0.00046235,120]
[354515694,1740545466354,-1623.34,0.00046235,120]
[354515695,1740545466363,-715.2,0.00046235,120]
[354515696,1740545466372,-770.6,0.00046235,120]
[354515697,1740545466381,-2381.2,0.00046235,120]
[354515698,1740545466391,-500.0,0.00046235,120]
[354515699,1740545466400,-3218.67,0.00046235,120]
[354515700,1740545466409,-500.0,0.00046235,120]
[354515701,1740545466419,-1213.2,0.00046235,120]
[354515702,1740545466428,-1365.77,0.00046235,120]
[354515703,1740545466437,-3535.96,0.00046235,120]
[354515704,1740545466447,-1094.81,0.00046235,120]
[354515705,1740545466456,-613.96,0.00046235,120]
[354515706,1740545466465,-1736.75,0.00046235,120]
[354515707,1740545466475,-819.34,0.00046235,120]
[354515708,1740545466484,-500.0,0.00046235,120]
[354515709,1740545466494,-1191.64,0.00046235,120]
[354515710,1740545466503,-1838.84,0.00046235,120]
[354515711,1740545466512,-1998.26,0.00046235,120]
[354515712,1740545466522,-500.0,0.00046235,120]
[354515713,1740545466531,-2066.74,0.00046235,120]
[354515714,1740545466540,-500.0,0.00046235,120]
[354515715,1740545466549,-500.0,0.00046235,120]
[354515716,1740545466558,-1056.0,0.00046235,120]
[354515717,1740545466567,-2081.86,0.00046235,120]
[354515718,1740545466577,-3154.05,0.00046235,120]
[354515719,1740545466586,-521.64,0.00046235,120]
[354515720,1740545466595,-3583.88,0.00046235,120]
[354515721,1740545466605,-3290.37,0.00046235,120]
[354515722,1740545466614,-500.0,0.00046235,7]
[354515723,1740545466624,-500.0,0.00046235,120]
[354515724,1740545466633,-1029.78,0.00046235,120]
[354515725,1740545466642,-500.0,0.00046235,120]
[354515726,1740545466655,-1079.36,0.00046235,120]
[354515727,1740545466667,-3570.47,0.00046235,120]
[354515728,1740545466676,-1450.61,0.00046235,120]
[354515729,1740545466685,-500.0,0.00046235,120]
[354515730,1740545466695,-536.84,0.00046235,120]
[354515731,1740545466704,-500.0,0.00046235,120]
[354515732,1740545466713,-150.0,0.00046236,2]
[354515733,1740545466722,-1000.0,0.00046237,14]
[354515734,1740545466732,-2101.74,0.00046252,120]
[354515735,1740545466741,-150.0,0.00046254,2]
[354515736,1740545466750,-300.0,0.00046255,2]
[354515737,1740545466759,-150.0,0.00046268,2]
[354515738,1740545466768,-500.0,0.00046272,120]
[354515739,1740545466778,-1349.05,0.00046272,120]
[354515740,1740545466788,-2101.74,0.00046272,120]
[354515741,1740545466797,-500.0,0.00046273,120]
[354515742,1740545466807,-310.06495992,0.00046273,120]
[354515743,1740545466816,-1912.23,0.00046273,120]
[354515744,1740545466825,-1634.95,0.00046273,120]
[354515745,1740545466835,-500.0,0.00046273,120]
[354515746,1740545466844,-500.0,0.00046273,120]
[354515747,1740545466855,-500.0,0.00046273,120]
[354515748,1740545466864,-2120.31,0.00046273,120]
[354515749,1740545466874,-779.74,0.00046273,120]
[354515750,1740545466884,-1878.9,0.00046273,120]
[354515751,1740545466893,-1964.02,0.00046273,120]
[354515752,1740545466906,-3015.44,0.00046273,120]
[354515753,1740545466915,-2377.91,0.00046273,120]
[354515754,1740545466924,-1894.6,0.00046273,120]
[354515755,1740545466933,-500.0,0.00046273,120]
[354515756,1740545466943,-2461.47,0.00046273,120]
[354515757,1740545466953,-2905.68,0.00046273,120]
[354515758,1740545466962,-1850.42,0.00046273,120]
[354515759,1740545466971,-500.0,0.00046273,120]
[354515760,1740545466981,-500.0,0.00046273,120]
[354515761,1740545466991,-2176.88,0.00046273,120]
[354515762,1740545467001,-500.0,0.00046273,120]
[354515763,1740545467010,-3253.5,0.00046273,120]
[354515764,1740545467019,-1427.31,0.00046273,120]
[354515765,1740545467028,-5715.49,0.00046273,120]
[354515766,1740545467037,-2878.74,0.00046273,120]
[354515767,1740545467047,-3706.14,0.00046273,120]
[354515768,1740545467056,-2167.29,0.00046273,120]
[354515769,1740545467065,-1589.16,0.00046273,120]
[354515770,1740545467075,-1344.36,0.00046273,120]
[354515771,1740545467084,-3832.17,0.00046273,120]
[354515772,1740545467093,-2427.51,0.00046273,120]
[354515773,1740545467104,-3941.81,0.00046273,120]
[354515774,1740545467114,-1433.47,0.00046273,120]
[354515775,1740545467123,-3910.65,0.00046273,120]
[354515776,1740545467132,-1863.34,0.00046273,120]
[354515777,1740545467147,-500.0,0.00046273,120]
[354515778,1740545467156,-2606.47,0.00046273,120]
[354515779,1740545467166,-1086.83,0.00046273,120]
[354515780,1740545467175,-665.71,0.00046273,120]
[354515781,1740545467184,-1003.02,0.00046273,120]
[354515782,1740545467193,-775.17,0.00046273,120]
[354515783,1740545467202,-2942.35,0.00046273,120]
[354515784,1740545467212,-2557.0,0.00046273,120]
[354515785,1740545467223,-1863.37,0.00046273,120]
[354515786,1740545467233,-714.28,0.00046273,120]
[354515787,1740545467244,-859.75,0.00046273,120]
[354515788,1740545467254,-150.0,0.00046276,14]
[354515789,1740545467264,-975.0,0.0004628,7]
[354515790,1740545467273,-150.0,0.00046284,2]
[354515791,1740545467282,-2000.0,0.00046301,120]
[354515792,1740545467291,-150.0,0.00046307,2]
[354515793,1740545467300,-1000.0,0.00046315,14]
[354515794,1740545467309,-150.0,0.0004632,2]
[354515795,1740545467319,-150.0,0.00046325,2]
[354515796,1740545467328,-365.92958816,0.00046329,120]
[354515797,1740545467337,-150.0,0.00046339,2]
[354515798,1740545467347,-150.92562861,0.00046351,14]
[354515799,1740545467357,-150.0,0.00046356,14]
[354515800,1740545467367,-672.39,0.00046373,2]
[354515801,1740545467375,-150.0,0.00046388,2]
[354515802,1740545467385,-680.87,0.00046394,2]
[354515803,1740545467395,-150.0,0.00046395,2]
[354515804,1740545467404,-232.0,0.000464,30]
[354515805,1740545467413,-367.0,0.000464,30]
[354515806,1740545467422,-150.0,0.000464,2]
[354515807,1740545467432,-150.0,0.00046416,2]
[354515808,1740545467441,-150.0,0.00046428,2]
[354515809,1740545467450,-150.0,0.00046438,2]
[354515810,1740545467459,-150.0,0.00046454,2]
[354515811,1740545467468,-150.0,0.0004646,2]
[354515812,1740545467477,-1000.0,0.00046468,14]
[354515813,1740545467486,-150.0,0.00046471,2]
[354515814,1740545467496,-196.56274397,0.00046485,2]
[354515815,1740545467505,-150.0,0.00046489,2]
[354515816,1740545467515,-500.0,0.00046499,120]
[354515817,1740545467523,-1349.05,0.00046499,120]
[354515818,1740545467533,-73328.95446452,0.000465,120]
[354515819,1740545467542,-626.54076768,0.00046503,22]
[354515820,1740545467551,-11207.18,0.00046506,120]
[354515821,1740545467560,-6437.93,0.00046506,120]
[354515822,1740545467570,-4459.21,0.00046506,120]
[354515823,1740545467581,-4352.17,0.00046506,120]